Cogmind - Beta 10.2 @@@ ROGUE MODE // 2021.12.14 @ 05:23:34 Player: debl Result: Destroyed by S-10 Pest with Light Assault Rifle Performance ------------- Evolutions (1) 500 Regions Visited (3) 600 Robots Destroyed (15) 75 Value Destroyed (403) 403 Prototype IDs (0) 0 Alien Tech Used (0) 0 Bonus (0) 0 TOTAL SCORE: 1578 Bonus ------- None Cogmind --------- Core Integrity 0/400 Matter 288/300 Energy 100/100 System Corruption 0% Temperature Cool (0) Movement Core (50) Location -9/Storage Parts ------- > --- POWER (1) -------- (None) > --- PROPULSION (2) --- (None) > --- UTILITY (3) ------ Improved Signal Interpreter > --- WEAPON (3) ------- (None) > --- INVENTORY (4) ---- Small Storage Unit Terrain Scanner Terrain Scan Processor Peak State ------------ > --- POWER ------------ Ion Engine > --- PROPULSION ------- Aluminum Leg Aluminum Leg > --- UTILITY ---------- Small Storage Unit Sensor Array Improved Signal Interpreter > --- WEAPON ----------- Light EM Pulse Cannon Light EM Pulse Cannon Light EM Pulse Cannon > --- INVENTORY -------- Ion Engine Grenade Launcher [Rating: 13] Favorites ----------- Power Ion Engine Engine Ion Engine Propulsion Aluminum Leg Leg Aluminum Leg Wheel Wheel Utility Improved Signal Interpreter Device Sensor Array Storage Small Storage Unit Processor Improved Signal Interpreter Weapon Light EM Pulse Cannon Energy Gun Medium Laser Energy Cannon Light EM Pulse Cannon Ballistic Gun Heavy Assault Rifle Launcher Grenade Launcher Build | -11 -10 -9 -9 ------- Run | Scr Mat Mat Sto Slots Evolved 2 | . . 2 . Power . | . . . . Propulsion . | . . . . Utility 1 | . . 1 . Weapon 1 | . . 1 . Parts Attached 25 | 6 7 4 8 Power 4 | 1 1 1 1 Engine 4 | 1 1 1 1 Core . | . . . . Reactor . | . . . . Propulsion 5 | 3 . . 2 Treads . | . . . . Leg 4 | 2 . . 2 Wheel 1 | 1 . . . Hover . | . . . . Flight . | . . . . Utility 6 | . 3 1 2 Device 3 | . 1 . 2 Storage 2 | . 1 1 . Processor 1 | . 1 . . Hackware . | . . . . Protection . | . . . . Artifact . | . . . . Weapon 10 | 2 3 2 3 Energy Gun 1 | 1 . . . Energy Cannon 4 | . 3 1 . Ballistic Gun 3 | 1 . . 2 Ballistic Cannon . | . . . . Launcher 2 | . . 1 1 Special Weapon . | . . . . Impact Weapon . | . . . . Slashing Weapon . | . . . . Piercing Weapon . | . . . . Special Melee Weapon . | . . . . Unidentified Prototypes . | . . . . Parts Lost 12 | . . 3 9 Power 3 | . . 1 2 Propulsion 1 | . . . 1 Utility 2 | . . . 2 Weapon 6 | . . 2 4 Highest Loss Streak 3 | . . 3 3 Average Slot Usage (%) 86 | . 84 97 80 Engine 10 | . 14 11 9 Leg 21 | . 28 22 18 Device 12 | . 1 11 19 Storage 6 | . 13 10 . Processor 8 | . . 11 11 Energy Cannon 17 | . 26 27 7 Ballistic Gun 2 | . . . 6 Launcher 4 | . . 3 7 Naked Turns . | . . . . Heaviest Build 22 | 8 18 22 17 Greatest Support 20 | 20 20 20 20 Greatest Overweight (x) 1 | 1 . 1 1 Average Overweight (x) . | . . . . Largest Inventory Capacity 6 | 4 6 6 6 Average Capacity 5 | 4 5 5 4 Most Carried 6 | 4 6 4 4 Average Carried 2 | 1 4 2 2 Final Capacity 6 | 4 4 6 4 Final Carried 4 | 1 4 1 3 Class Distribution -------------------- 67% | Mutant 16% | Scavenger-Mutant 13% | Skirmisher Dominant Class ---------------- Mutant | -10/Materials Mutant | -9/Materials Mutant | -9/Storage Resources | -11 -10 -9 -9 ----------- Run | Scr Mat Mat Sto Matter Collected 472 | 181 110 74 107 Remotely . | . . . . Salvage Created 531 | . 110 295 126 Parts 36 | . 5 12 19 Haulers Intercepted . | . . . . Recyclers Shooed . | . . . . Parts Field Recycled . | . . . . Retrieved Matter . | . . . . Parts Self-Destructed . | . . . . Prevented . | . . . . Kills | -11 -10 -9 -9 ------- Run | Scr Mat Mat Sto Combat Hostiles Destroyed 11 | . 2 6 3 Guns 1 | . . . 1 Cannons 8 | . 2 4 2 Classes Destroyed 6 | . 1 2 3 Worker 1 | . . . 1 Builder 3 | . . . 3 Swarmer 1 | . . . 1 Grunt 7 | . 2 4 1 Brawler 1 | . . 1 . Sentry 2 | . . 1 1 Best Kill Streak 5 | . 2 2 5 Combat Bots Only 2 | . 2 2 1 Max Kills in Single Turn 3 | . 1 1 3 Gunslinging . | . . . . Exploded . | . . . . Melee . | . . . . Uniques/NPCs Destroyed . | . . . . Combat | -11 -10 -9 -9 -------- Run | Scr Mat Mat Sto Damage Taken 1482 | . 153 492 837 Core 429 | . 29 47 353 Absorbed by Shields . | . . . . Core Remaining (%) 94 | 100 88 . . Volleys Fired 46 | . 7 15 24 Largest 3 | . 2 3 2 Hottest 168 | . 112 168 86 Shots Fired 71 | . 14 28 29 Gun 18 | . . . 18 Cannon 48 | . 14 28 6 Launcher 5 | . . . 5 Special . | . . . . Kinetic 18 | . . . 18 Thermal . | . . . . Explosive 5 | . . . 5 Electromagnetic 48 | . 14 28 6 Robot Hit Streak 8 | . 7 8 4 Robot Miss Streak 3 | . 2 2 3 Penetration Max . | . . . . Secondary Targets . | . . . . Shots Hit Robots 46 | . 10 20 16 Core Hits 22 | . 3 5 14 Critical Hits 1 | . . 1 . Critical Kills . | . . . . Critical Parts Destroyed 1 | . . 1 . Melee Attacks . | . . . . Impact . | . . . . Slashing . | . . . . Piercing . | . . . . Sneak Attacks . | . . . . Combat Hostiles . | . . . . Follow-up Attacks . | . . . . Damage Inflicted 1075 | . 167 444 464 Guns 125 | . . . 125 Cannons 699 | . 167 443 89 Explosions 231 | . . . 231 Melee . | . . . . Ramming 20 | . . 1 19 Kinetic 125 | . . . 125 Thermal . | . . . . Explosive 231 | . . . 231 Electromagnetic 699 | . 167 443 89 Impact . | . . . . Slashing . | . . . . Piercing . | . . . . Highest Corruption . | . . . . Average Corruption . | . . . . Corruption Purged . | . . . . Overload Shots . | . . . . Overflow Damage 26 | . . 24 2 Projectiles 26 | . . 24 2 Explosions . | . . . . Melee . | . . . . Knockbacks . | . . . . Impact . | . . . . Kinetic . | . . . . Secondary . | . . . . Self-Inflicted Damage 9 | . . . 9 Shots . | . . . . Rammed 6 | . . 2 4 Targets Rammed 6 | . . 2 4 Kicked . | . . . . Crushed . | . . . . Highest Temperature 216 | . 198 216 52 Average Temperature 71 | . 87 74 24 Received Heat Transfer 381 | . 84 159 138 Siege Activations . | . . . . Robots Corrupted 2 | . . 2 . Combat Hostiles 2 | . . 2 . Parts Fried 3 | . . 2 1 Impact Corruptions . | . . . . Robots Melted . | . . . . Combat Hostiles . | . . . . Parts Melted . | . . . . Heat Transferred . | . . . . Parts Sabotaged . | . . . . Parts Stolen . | . . . . Parts Stripped . | . . . . Power Chain Reactions . | . . . . Missiles Intercepted . | . . . . Alert | -11 -10 -9 -9 ------- Run | Scr Mat Mat Sto Peak Influence 219 | . 95 219 207 Initial 92 | . . 39 92 Average 99 | . 68 98 129 Maximum Alert Level 1 | . . 1 1 Low Security (%) 96 | 100 100 87 98 Level 1 3 | . . 12 1 Level 2 . | . . . . Level 3 . | . . . . Level 4 . | . . . . Level 5 . | . . . . High Security . | . . . . Max Security . | . . . . Squads Dispatched 3 | . 1 1 1 Investigation 1 | . . 1 . Extermination . | . . . . Reinforcement 2 | . 1 . 1 Assault . | . . . . Garrison . | . . . . Intercept . | . . . . Construction Impeded . | . . . . Haulers Reinforced . | . . . . Stealth | -11 -10 -9 -9 --------- Run | Scr Mat Mat Sto Distress Signals 3 | . 1 1 1 Communications Jammed . | . . . . Distress Signals . | . . . . Times Spotted 35 | . 8 11 16 Peak Tracking Total 9 | . 5 4 9 Tactical Retreats 5 | . 1 1 3 Traps | -11 -10 -9 -9 ------- Run | Scr Mat Mat Sto Traps Triggered . | . . . . Indirectly . | . . . . Trap Hack Attempts . | . . . . Triggered . | . . . . Disarmed . | . . . . Reprogrammed . | . . . . Reused . | . . . . Traps Extracted . | . . . . Installed . | . . . . Triggered . | . . . . Machines | -11 -10 -9 -9 ---------- Run | Scr Mat Mat Sto Machines Disabled . | . . . . Max in Single Turn . | . . . . Machines Sabotaged . | . . . . Garrisons Compromised . | . . . . Overloaded Fab Kills . | . . . . Fab Network Shutdowns . | . . . . Hacking | -11 -10 -9 -9 --------- Run | Scr Mat Mat Sto Machines Accessed 6 | . 3 2 1 Terminals 3 | . 2 1 . Fabricators . | . . . . Repair Stations 1 | . . . 1 Recycling Units 2 | . 1 1 . Scanalyzers . | . . . . Garrison Access . | . . . . Total Hacks 10 | . 4 4 2 Successful 6 | . 2 2 2 Failed 4 | . 2 2 . Catastrophic . | . . . . Database Lockouts . | . . . . Manual 1 | . 1 . . Terminals 5 | . 2 3 . Fabricators . | . . . . Repair Stations 2 | . . . 2 Recycling Units 3 | . 2 1 . Scanalyzers . | . . . . Garrison Access . | . . . . Terminal Hacks 2 | . 1 1 . Record 1 | . 1 . . Locate Traps 1 | . . 1 . Fabricator Hacks . | . . . . Repair Station Hacks 2 | . . . 2 Scan Component 1 | . . . 1 Repair 1 | . . . 1 Recycling Unit Hacks 2 | . 1 1 . Report Inventory 2 | . 1 1 . Scanalyzer . | . . . . Garrison Access Hacks . | . . . . Unauthorized Hacks . | . . . . Terminals . | . . . . Fabricators . | . . . . Repair Stations . | . . . . Recycling Units . | . . . . Scanalyzers . | . . . . Garrison Access . | . . . . Data Cores Recovered . | . . . . Used . | . . . . Hacking Detections 3 | . 1 1 1 Full Trace Events 1 | . . 1 . Feedback Events . | . . . . Feedback Blocked . | . . . . Robot Schematics Acquired . | . . . . Robots Built . | . . . . Matter . | . . . . Time . | . . . . Total Robot Build Rating . | . . . . Part Schematics Acquired . | . . . . Parts Built . | . . . . Matter . | . . . . Time . | . . . . Total Part Build Rating . | . . . . Parts Repaired 1 | . . . 1 Time 26 | . . . 26 Parts Recycled . | . . . . Recycled Matter . | . . . . Retrieved Matter . | . . . . Retrieved Components . | . . . . Parts Scanalyzed . | . . . . Part Schematics Acquired . | . . . . Parts Damaged . | . . . . Bothacking | -11 -10 -9 -9 ------------ Run | Scr Mat Mat Sto Used RIF Installer . | . . . . Robots Hacked . | . . . . Non-combat . | . . . . Combat . | . . . . Robot Hacks Applied . | . . . . Relay Couplers Released . | . . . . Robots Rewired . | . . . . Allies Hacked . | . . . . Hacks Repelled . | . . . . Allies | -11 -10 -9 -9 -------- Run | Scr Mat Mat Sto Total Allies . | . . . . Largest Group . | . . . . Highest-Rated Group . | . . . . Highest-Rated Ally . | . . . . Total Orders . | . . . . Ally Attacks . | . . . . Total Damage . | . . . . Kills . | . . . . Allies Corrupted . | . . . . Allies Melted . | . . . . Intel | -11 -10 -9 -9 ------- Run | Scr Mat Mat Sto Robot Analysis Total . | . . . . Derelict Logs Recovered . | . . . . Drone Launches . | . . . . Drone Recoveries . | . . . . Exploration | -11 -10 -9 -9 ------------- Run | Scr Mat Mat Sto Turns Passed 1117 | 65 271 282 499 Spaces Moved 641 | 50 180 120 291 Core 157 | 24 . . 133 Treads . | . . . . Legs 484 | 26 180 120 158 Wheels . | . . . . Hover . | . . . . Flight . | . . . . Fastest Speed 50 | 50 120 120 50 Average Speed 107 | 98 120 141 88 Slowest Speed 150 | 120 120 150 150 Overloaded Moves . | . . . . Propulsion Burnouts . | . . . . Robots Hopped . | . . . . Cave-ins Triggered . | . . . . Exploration Rate (%) 24 | 4 24 13 57 Regions Visited 3 Branch Regions 1 Pre-discovered Areas 1 | . . . 1 Known Exits Taken 2 | . 1 1 . Unknown Exits Taken 1 | 1 . . . Scrap Searched . | . . . . Spaces Dug . | . . . . Terrain Destroyed 35 | . . . 35 Melee . | . . . . Projectile . | . . . . AOE 35 | . . . 35 Terrain Rammed . | . . . . Walls Destroyed . | . . . . Machines Disabled . | . . . . Actions | -11 -10 -9 -9 --------- Run | Scr Mat Mat Sto Total 998 | 66 220 206 506 Wait 256 | 3 17 66 170 Move 638 | 49 179 119 291 Hop . | . . . . Pick Up 19 | 7 6 . 6 Fast Attach 3 | . 2 . 1 Attach 15 | 6 2 3 4 Detach . | . . . . Swap 7 | . 3 1 3 Drop 8 | 1 4 . 3 Fire 46 | . 7 15 24 Melee . | . . . . Ram 4 | . . . 4 Kick 2 | . . 2 . Crush . | . . . . Escape Stasis . | . . . . Rewire . | . . . . Trap . | . . . . Miscellaneous . | . . . . Route ------- -11/Scrapyard -10/Materials -9/Materials -9/Storage History --------- Turn | Location | Event 14 | -11/Scrapyard | Discovered new exit (range 16) 66 | -11/Scrapyard | Entered Materials 268 | -10/Materials | Discovered new exit (range 14) 336 | -10/Materials | Identified exit to Materials 337 | -10/Materials | Entered another Materials area 337 | -9/Materials | Evolved 2 slots: Utility x1, Weapon x1 349 | -9/Materials | Build established: Mutant 477 | -9/Materials | Discovered new exit (range 5) 488 | -9/Materials | Identified exit to Storage 619 | -9/Materials | Entered Storage 633 | -9/Storage | Learned location of Armory (-4) 637 | -9/Storage | Lost 3 parts (1p2w) 690 | -9/Storage | Repaired Sensor Array 1017 | -9/Storage | Lost 3 parts (1p2w) 1039 | -9/Storage | Core integrity fell below 50% 1066 | -9/Storage | Lost 3 parts (1p1n1w) 1089 | -9/Storage | Core integrity fell below 20% 1118 | -9/Storage | Destroyed by S-10 Pest with Light Assault Rifle Last Messages --------------- 00983_ Ion Engine destroyed. 00986_ Grenade Launcher destroyed. 01027_ S-10 Pest destroyed. 01028_ Hvy. Assault Rifle destroyed. 01029_ Acquired 11 matter. 01031_ Aluminum Leg destroyed. 01032_ Acquired 12 matter. 01035_ Imp. Ion Engine destroyed. 01036_ Dropped Aluminum Leg. 01043_ K-01 Serf destroyed. 01043_ Acquired 12 matter. 01052_ Slammed into K-01 Serf. 01063_ Acquired Lgt. Assault Rifle. 01073_ Sensor Array destroyed. 01084_ T-07 Excavator is excavating. 01087_ Slammed into K-01 Serf. 01097_ Lgt. Assault Rifle destroyed. 01100_ K-01 Serf destroyed. 01117_ Structural Scanner destroyed. 01118_ Slammed into K-01 Serf. Map ----- +----------------------------------------------------+ | ????????????????????????????????????????# #?? | | ????????????????????????????????????????# ### | | ???????????????????????????????????????## | | ???????????????????????????????????????+ | | ???????????????????????????????????????# | | ??????????????????????????????#+##/##+## = !!! | | ##########????????????????????# % !!! | | #????????????????????# !!! | | #????????????????????# | | #????????????????????+ | | ! #????????????????????# #####+##+#####+##+ | | #????????????????????# #?#]! !# / | | """ """ #???????????????+????# #?# # !% | | """ """????????????????? ???# ?# [ # | | """ ""?????????????????? ???# ?# # ! | | | ######??????????????????# #??? ?# ######### | | ##########??????????????# #???# #?# ! #???????? | | """"" ####?###???????# ##### #####/#######????? | | """"" """### ######??# +????? | | """"" R"# #??# #####/#############????? | | """# """ #??# ## #??????????????? | | #### """ #?## ## #??????????????? | | #?#" """ ### # #??????????????? | | #?#T /k + #??????????????? | | #?#" """ ### k # #?????????###### | | ##########?## """ #?##@## #?????????# | | # #???????# """ #??# #########?????????# """ | | #####???????# #??# a +?????????# "?? | | |! ##############+####### #####??????????# "?? | | * ## #??????????????# ""? | | ## #??????????????# "" | | [ = ## s #??????????????# " | | ########+#############+##s######?????????# | | +#####????# #????????# #+###/#########" | | #????# #????????# # | | #????" #????????# """" """ + | | """" #????#T##????????# """" """ # | | ???? #????###?????????# """" """ ################ | | ??"" #????????????????# """" #??????????????? | | ??" #???????????????? ?? #??????????????? | | ??" #???????????????????##########??????????????? | | """ #???????????????????????????????????????????? | | #???????????????????????????????????????????? | | ###+##???????????????????????????????????????????? | | ??# #????????????????????????????????????????????? | | ??# #????????????????????????????????????????????? | | ??#=#????????????????????????????????????????????? | | ??# #????????????????????????????????????????????? | | ??# #????????????????????????????????????????????? | | ???????????????????????????????????????????? | +----------------------------------------------------+ Best States ------------- Heat Dissipation 28 Energy Generation 12 Energy Capacity 265 Matter Stores 300 Matter Capacity 300 Sight Range 16 Robot Scan Range 10 Terrain Scan Density 10 Evasion (%) 50 Item Schematics ----------------- None Robot Schematics ------------------ None Fabricated ------------ Nothing Alien Tech Used ----------------- None Achievements -------------- None Challenges ------------ None Game ------ Seed SmallChromaticCarapace Manual? 0 Play Time 00:26:19 Cumulative 14.0 hours Start 2021.12.14 @ 05:00:08 End 2021.12.14 @ 05:23:34 Sessions 1 Manual Loads 0 Difficulty Rogue Special Mode None Game No. 21 Rogue 21 Adventurer 0 Explorer 0 Win Type - Total 0 Types 0/0/0/0/0/0/0/0/0 Lore% 11 Gallery% 18 Achievement% 14 Wizard Run 0 Options --------- ASCII 0 Keyboard 0 Movement Mouse Keybinds 0 Fullscreen 1 Font 18/SmallcapsGlow Map View 76x50 Tactical HUD 1 Map Filters NONE Filters NONE Steam 1 RUN: f1305c9a-d5f3-44a4-959d-bff8fe3dab16